bitfinex/quotes_SOLUSD_20251002
["timestamp","ask_amount","ask_price","bid_price","bid_amount"]
[1759397473632,4.44207533,225.12,225.1,31.62]
[1759397474245,5.14207533,225.12,225.1,31.62]
[1759397475628,11.10466209,225.14,225.1,31.62]
[1759397475629,11.80466209,225.14,225.1,31.62]
[1759397475816,0.7,225.13,225.1,31.62]
[1759397477628,4.44207533,225.12,225.1,31.62]
[1759397480421,4.44207533,225.12,225.05,3.69936471]
[1759397480422,0.7,225.11,225.05,3.69936471]
[1759397480622,0.7,225.1,225.04,3.01919409]
[1759397480840,0.7,225.09,225.04,3.01919409]
[1759397481021,0.7,225.08,225.04,2.31919409]
[1759397481222,0.7,225.07,225.04,2.31919409]
[1759397481524,15.54726367,225.12,225.02,1e-08]
[1759397481525,0.7,225.06,225.02,1e-08]
[1759397481922,2.32344534,225.09,225.02,1e-08]
[1759397481923,0.7,225.05,225.02,1e-08]
[1759397482126,4.44365446,225.04,225.02,1e-08]
[1759397482733,5.10365446,225.04,225.02,1e-08]
[1759397483042,4.44365446,225.04,225.02,1e-08]
[1759397483265,11.10843245,225.06,225.02,1e-08]
[1759397483445,0.66,225.04,225.02,1e-08]
[1759397484237,4.44385193,225.03,225.02,1e-08]
[1759397486320,5.15385193,225.03,225.02,1e-08]
[1759397486642,4.44385193,225.03,225.02,1e-08]
[1759397487832,5.15385193,225.03,225.02,1e-08]
[1759397491549,4.44385193,225.03,225.02,1e-08]
[1759397492735,4.44365446,225.04,225.02,1e-08]
[1759397493049,0.71,225.03,225.02,1e-08]
[1759397493233,4.44365446,225.04,225.02,1e-08]
[1759397493641,5.15365446,225.04,225.02,1e-08]
[1759397494529,4.44365446,225.04,225.02,1e-08]
[1759397494754,0.71,225.03,225.02,1e-08]
[1759397495456,4.44365446,225.04,225.02,1e-08]
[1759397496841,5.15365446,225.04,225.02,1e-08]
[1759397497254,4.44365446,225.04,225.02,1e-08]
[1759397497434,5.15385193,225.03,225.02,1e-08]
[1759397499741,4.44365446,225.04,225.02,1e-08]
[1759397500563,5.15365446,225.04,225.02,1e-08]
[1759397501569,6.22340926,225.03,225.02,1e-08]
[1759397503559,1.77955733,225.03,225.02,0.69000001]
[1759397503768,137.34346493,225.05,225.02,0.69000001]
[1759397503939,139.12286393,225.05,225.03,0.69]
[1759397504639,139.12286393,225.05,225.04,14.3]
[1759397504863,137.34346493,225.05,225.04,14.3]
[1759397508045,137.34346493,225.05,225.02,1e-08]
[1759397508244,138.05346493,225.05,225.02,1e-08]
[1759397510867,1.48923633,225.03,225.02,1e-08]
[1759397511255,2.19923633,225.03,225.02,1e-08]
[1759397511970,15.547104,225.03,225.02,1e-08]
[1759397512943,19.99095593,225.03,225.02,1e-08]
[1759397524973,18.5017196,225.03,225.02,1e-08]
[1759397525268,19.99095593,225.03,225.02,1e-08]
[1759397529379,30.86743114,225.03,225.02,1e-08]
[1759397532079,20.8,224.99,224.98,1e-08]
[1759397532282,53.82923633,224.99,224.98,1e-08]
[1759397532658,54.53923633,224.99,224.98,1e-08]
[1759397532884,56.31942725,224.99,224.98,1e-08]
[1759397533181,60.76406923,224.99,224.98,1e-08]
[1759397534984,71.64054444,224.99,224.98,1e-08]
[1759397540269,10.87647521,224.94,224.91,0.2]
[1759397540481,1.48923633,224.92,224.91,0.2]
[1759397541069,3.26998201,224.92,224.91,0.2]
[1759397541292,18.59248247,224.92,224.91,1e-08]
[1759397541506,19.30248247,224.92,224.89,1e-08]
[1759397541667,1.48923633,224.9,224.89,1e-08]
[1759397542497,3.27014058,224.9,224.89,1e-08]
[1759397543466,18.59303642,224.9,224.89,1e-08]
[1759397546574,1.48923633,224.86,224.83,0.67]
[1759397546891,132.9,224.85,224.84,0.67]
[1759397547064,164.42,224.85,224.84,0.67]
[1759397547268,171.1895749,224.85,224.84,0.67]
[1759397547594,17.88809836,224.85,224.79,0.2]
[1759397547773,17.88809836,224.85,224.8,0.67]
[1759397547974,31.52,224.84,224.81,0.67]
[1759397548288,33.00923633,224.84,224.79,0.2]
[1759397548494,1.48923633,224.83,224.81,0.67]
[1759397548700,3.81140185,224.83,224.81,0.67]
[1759397549170,1.48923633,224.83,224.81,0.67]
[1759397549372,6.22938296,224.82,224.81,0.67]
[1759397549567,37.74938296,224.82,224.81,0.67]
[1759397550209,37.74938296,224.82,224.79,0.2]
[1759397550210,48.86939007,224.82,224.79,0.2]
[1759397550369,48.86939007,224.82,224.8,0.67]
[1759397550572,47.08800995,224.82,224.8,0.67]
[1759397550783,1.48923633,224.81,224.79,0.2]
[1759397550995,3.27069579,224.81,224.79,0.2]
[1759397551290,34.79069579,224.81,224.79,0.2]
[1759397551494,5.9376349,224.8,224.79,0.2]
[1759397551669,17.76863134,224.8,224.77,0.2]
[1759397551869,1.48923633,224.78,224.77,0.2]
[1759397552093,1.48923633,224.78,224.77,1e-08]
[1759397552094,12.36571154,224.78,224.77,1e-08]
[1759397552404,12.36571154,224.78,224.75,0.2]
[1759397552405,10.87647521,224.77,224.75,1e-08]
[1759397552566,33.00923633,224.76,224.75,1e-08]
[1759397552767,44.59571154,224.76,224.75,1e-08]
[1759397553383,12.36571154,224.76,224.75,1e-08]
[1759397553597,69.13490178,224.76,224.75,1e-08]
[1759397554407,69.84490178,224.76,224.75,1e-08]
[1759397556297,49.04490178,224.76,224.75,1e-08]
[1759397556497,48.33490178,224.76,224.75,1e-08]
[1759397556880,25.24919024,224.76,224.75,1e-08]
[1759397557084,58.25842657,224.76,224.75,1e-08]
[1759397557288,69.13490178,224.76,224.75,1e-08]
[1759397557772,83.21120532,224.76,224.75,1e-08]
[1759397560380,84.05571244,224.76,224.75,1e-08]
[1759397567321,52.53571244,224.76,224.75,1e-08]
[1759397567615,84.05571244,224.76,224.75,1e-08]
[1759397568225,38.61549378,224.76,224.75,0.67000001]
[1759397568391,72.46923723,224.76,224.75,0.67000001]
[1759397568799,72.46923723,224.76,224.75,1e-08]
[1759397569199,84.05571244,224.76,224.75,1e-08]
[1759397571790,81.01196899,224.76,224.75,1e-08]
[1759397571985,83.34571244,224.76,224.75,1e-08]
[1759397572719,51.82571244,224.76,224.75,1e-08]
[1759397573018,83.34571244,224.76,224.75,1e-08]
[1759397573592,81.01196899,224.76,224.75,1e-08]
[1759397573803,49.33549378,224.76,224.75,0.67000001]
[1759397574609,17.81549378,224.76,224.75,0.67000001]
[1759397574820,49.33549378,224.76,224.75,0.67000001]
[1759397578910,17.81549378,224.76,224.75,0.67000001]
[1759397579114,35.94919024,224.76,224.75,0.67000001]
[1759397579515,49.31251681,224.76,224.75,0.67000001]
[1759397580923,35.94919024,224.76,224.75,0.67000001]
[1759397581121,40.39975109,224.76,224.75,0.67000001]
[1759397582410,8.89975109,224.76,224.75,0.67000001]
[1759397582720,40.39975109,224.76,224.75,0.67000001]
[1759397583020,35.94919024,224.76,224.75,0.67000001]
[1759397583225,4.44919024,224.76,224.75,0.67000001]
[1759397585022,31.5,224.78,224.75,0.67000001]
[1759397585396,44.86213616,224.78,224.75,0.67000001]
[1759397586007,31.5,224.78,224.75,0.67000001]
[1759397586205,44.84213616,224.79,224.75,0.67000001]
[1759397586425,35.92865255,224.79,224.75,0.67000001]
[1759397586722,49.2895985,224.79,224.75,1e-08]
[1759397586938,29.62108966,224.79,224.75,0.71000001]
[1759397587229,31.48,224.78,224.75,0.71000001]
[1759397587901,31.48,224.78,224.76,0.71]
[1759397588927,4.4489923,224.77,224.76,0.71]
[1759397589230,6.23068981,224.77,224.76,0.71]
[1759397590626,6.23068981,224.77,224.75,1e-08]
[1759397590929,6.23068981,224.77,224.75,0.71000001]
[1759397591133,38.95293369,224.76,224.75,1e-08]
[1759397591641,52.31864173,224.76,224.75,1e-08]
[1759397592707,49.98489828,224.76,224.75,1e-08]
[1759397593215,52.31864173,224.76,224.75,1e-08]
[1759397594405,20.83864173,224.76,224.75,1e-08]
[1759397594604,52.31864173,224.76,224.75,1e-08]
[1759397598540,49.98489828,224.76,224.75,1e-08]
[1759397599419,18.50489828,224.76,224.75,1e-08]
[1759397599739,49.96489828,224.76,224.75,1e-08]
[1759397602241,52.29864173,224.76,224.75,1e-08]
[1759397602918,49.96489828,224.76,224.75,1e-08]
[1759397603439,49.27489828,224.76,224.75,1e-08]
[1759397603752,17.81489828,224.76,224.75,1e-08]
[1759397604043,49.95489828,224.76,224.75,1e-08]
[1759397605847,18.49489828,224.76,224.75,1e-08]
[1759397606140,49.95489828,224.76,224.75,1e-08]
[1759397607737,18.49489828,224.76,224.75,1e-08]
[1759397607942,49.27489828,224.76,224.75,1e-08]
[1759397609346,49.95489828,224.76,224.75,1e-08]
[1759397610140,49.27489828,224.76,224.75,1e-08]
[1759397610519,49.95489828,224.76,224.75,1e-08]
[1759397610832,52.28864173,224.76,224.75,1e-08]
[1759397621235,51.60864173,224.76,224.75,1e-08]
[1759397621449,52.28864173,224.76,224.75,1e-08]
[1759397622260,51.44809383,224.76,224.75,1e-08]
[1759397625271,17.81489828,224.76,224.75,0.70000001]
[1759397625437,49.25489828,224.76,224.75,0.70000001]
[1759397631646,49.23489828,224.76,224.75,0.70000001]
[1759397632262,13.36570804,224.76,224.75,0.70000001]
[1759397632453,31.42,224.77,224.75,0.70000001]
[1759397632645,35.87054856,224.77,224.75,0.70000001]
[1759397633868,40.31966856,224.77,224.75,0.70000001]
[1759397634575,4.45054856,224.77,224.75,0.70000001]
[1759397634941,4.44868621,224.79,224.75,0.70000001]
[1759397635774,4.44868621,224.79,224.76,14.3]
[1759397635943,4.44868621,224.79,224.77,0.69]
[1759397636143,4.44868621,224.79,224.76,14.99]
[1759397636362,35.86868621,224.79,224.75,1e-08]
[1759397636567,1.49319555,224.76,224.75,1e-08]
[1759397636876,32.91319555,224.76,224.75,1e-08]
[1759397637049,33.61319555,224.76,224.75,1e-08]
[1759397637251,35.39513117,224.76,224.75,1e-08]
[1759397638072,39.84432141,224.76,224.75,1e-08]
[1759397641656,38.35112586,224.76,224.75,1e-08]
[1759397643871,39.84432141,224.76,224.75,1e-08]
[1759397654281,50.72079662,224.76,224.75,1e-08]
[1759397654456,50.72079662,224.76,224.71,0.2]
[1759397654457,10.87647521,224.75,224.71,0.2]
[1759397654655,1.49319555,224.72,224.71,0.2]
[1759397654861,32.87319555,224.72,224.71,0.2]
[1759397655058,46.94069025,224.72,224.71,0.2]
[1759397655481,44.7474947,224.72,224.71,0.2]
[1759397655659,44.7474947,224.72,224.71,0.89]
[1759397655857,49.1974769,224.72,224.71,0.89]
[1759397659359,17.8174769,224.72,224.71,0.89]
[1759397659659,49.1974769,224.72,224.71,0.89]
[1759397659889,17.8174769,224.72,224.71,0.89]
[1759397661065,49.1974769,224.72,224.71,0.2]
[1759397663096,17.8174769,224.72,224.71,0.2]
[1759397663433,49.1974769,224.72,224.71,0.2]
[1759397663897,17.8174769,224.72,224.71,0.2]
[1759397664066,49.1974769,224.72,224.71,0.2]
[1759397664267,17.8174769,224.72,224.71,0.2]
[1759397664496,49.1974769,224.72,224.71,0.2]
[1759397665095,49.1974769,224.72,224.71,0.92]
[1759397665297,17.8174769,224.72,224.71,0.92]
[1759397665595,35.8299822,224.72,224.71,0.92]
[1759397668192,4.4499822,224.72,224.71,0.92]
[1759397671184,157.3892652,224.74,224.71,0.92]
[1759397671185,146.2651126,224.74,224.71,0.92]
[1759397671384,132.9,224.74,224.71,5.37013367]
[1759397671584,132.9,224.74,224.72,0.72]
[1759397673606,49.17110532,224.78,224.72,5.16995519]
[1759397673779,49.17110532,224.78,224.73,15.02]
[1759397673780,35.80896916,224.78,224.73,15.02]
[1759397673989,4.44896916,224.78,224.74,0.72]
[1759397674592,4.44896916,224.78,224.75,0.72]
[1759397675789,0.68,224.77,224.73,15.02]
[1759397676486,35.80896916,224.78,224.74,0.72]
[1759397676691,5.12896916,224.78,224.74,0.72]
[1759397676894,0.68,224.77,224.73,14.3]
[1759397677088,0.68,224.77,224.73,15.02]
[1759397677290,0.68,224.77,224.73,14.3]
[1759397677485,0.68,224.76,224.73,14.3]
[1759397677709,0.68,224.75,224.72,20.8]
[1759397677917,0.68,224.75,224.72,21.52]
[1759397678499,5.12958545,224.75,224.72,21.52]
[1759397679229,4.44958545,224.75,224.72,21.52]
[1759397680602,4.44919024,224.76,224.73,0.72]
[1759397681696,13.36213616,224.79,224.73,0.72]
[1759397682551,31.34,224.8,224.73,0.72]
[1759397682731,49.8299396,224.8,224.73,0.72]
[1759397683936,49.8299396,224.8,224.75,14.3]
[1759397684139,0.68,224.79,224.75,14.3]
[1759397684339,0.68,224.78,224.75,14.3]
[1759397686440,60.27093604,224.8,224.77,20.8]
[1759397686441,12.75154103,224.8,224.77,20.8]
[1759397686621,4.94196053,224.94,224.79,20.8]
[1759397686622,0.68,224.89,224.79,20.8]
[1759397686816,0.68,224.89,224.83,20.8]
[1759397687818,4.44681607,224.88,224.83,20.8]
[1759397688018,5.12681607,224.88,224.83,21.52]
[1759397688229,0.68,224.87,224.79,52.14]
[1759397688423,0.68,224.86,224.79,52.14]
[1759397688742,0.68,224.86,224.79,52.86]
[1759397689340,0.68,224.86,224.79,52.14]
[1759397689525,4.44681607,224.88,224.8,0.72]
[1759397689912,4.44681607,224.88,224.81,4.4482007]
[1759397690109,4.44681607,224.88,224.82,0.72]
[1759397691641,137.34681607,224.88,224.82,0.72]
[1759397691940,133.58,224.88,224.83,31.34]
[1759397692110,0.68,224.87,224.83,31.34]
[1759397693131,132.9,224.88,224.83,31.34]
[1759397693132,0.68,224.86,224.83,31.34]
[1759397693341,149.14387441,224.88,224.83,31.34]
[1759397693522,0.68,224.87,224.81,0.72]
[1759397693725,0.68,224.87,224.82,31.32]
[1759397694125,0.68,224.87,224.82,32.0]
[1759397695218,4.44708725,224.87,224.82,31.32]
[1759397695424,132.9,224.88,224.83,0.68]
[1759397695717,132.9,224.88,224.83,32.0]
[1759397695918,132.9,224.88,224.84,0.68]
[1759397696131,137.34643389,224.9,224.84,0.68]
[1759397696650,137.34643389,224.9,224.83,31.32]
[1759397696651,138.03643389,224.9,224.83,32.0]
[1759397696827,138.03643389,224.9,224.84,0.68]
[1759397697345,138.03643389,224.9,224.84,5.12757158]
[1759397698947,138.03643389,224.9,224.85,31.32]
[1759397699255,0.69,224.89,224.85,31.32]
[1759397699653,5.13621383,224.92,224.86,0.68]
[1759397699856,5.13621383,224.92,224.85,35.76729723]
[1759397700031,4.44621383,224.92,224.85,35.76729723]
[1759397700358,0.69,224.91,224.85,35.76729723]
[1759397700536,0.69,224.9,224.85,35.76729723]
[1759397700735,0.69,224.9,224.85,36.44729723]
[1759397700736,5.13644271,224.9,224.85,36.44729723]
[1759397702030,0.69,224.93,224.86,0.68]
[1759397702228,132.9,224.96,224.88,20.8]
[1759397702432,5.13545164,224.95,224.88,20.8]
[1759397702744,5.13579944,224.94,224.89,31.32]
[1759397703056,0.69,224.93,224.89,31.32]
[1759397703255,0.69,224.92,224.89,31.32]
[1759397705436,0.69,224.94,224.89,31.32]
[1759397705762,0.69,224.93,224.89,31.32]
[1759397707037,0.69,224.93,224.88,20.8]
[1759397707254,5.13601427,224.93,224.89,31.3]
[1759397707449,4.44601427,224.93,224.9,31.3]
[1759397708052,5.13562872,224.95,224.9,31.3]
[1759397708245,132.9,224.96,224.91,0.68]
[1759397708448,132.9,224.96,224.92,31.3]
[1759397708449,0.69,224.95,224.92,31.3]
[1759397708657,137.34533031,224.96,224.91,20.8]
[1759397708863,0.69,224.95,224.92,31.3]
[1759397709359,4.44562994,224.94,224.89,0.68]
[1759397709534,4.44562994,224.94,224.9,0.68]
[1759397709740,4.44562994,224.94,224.91,31.3]
[1759397713155,5.13562994,224.94,224.91,31.3]
[1759397713836,4.44543231,224.95,224.91,31.3]
[1759397714040,5.13543231,224.95,224.91,31.3]
[1759397714273,5.13543231,224.95,224.91,20.8]
[1759397714445,5.13543231,224.95,224.89,21.48]
[1759397714642,5.13543231,224.95,224.83,5.5184]
[1759397714643,135.92155726,224.94,224.83,5.5184]
[1759397714841,2.33155726,224.92,224.88,20.8]
[1759397715051,0.69,224.91,224.85,44.65083776]
[1759397715265,0.69,224.9,224.85,31.3]
[1759397715471,0.69,224.89,224.88,20.8]
[1759397716164,5.13661834,224.89,224.88,20.8]
[1759397717975,4.44661834,224.89,224.88,20.8]
[1759397719170,0.69,224.89,224.85,31.3]
[1759397719468,0.69,224.88,224.87,20.8]
[1759397719668,0.69,224.88,224.83,56.9384]
[1759397719968,0.69,224.87,224.83,4.8384]
[1759397720142,0.69,224.86,224.83,36.1384]
[1759397721265,4.44740938,224.85,224.83,4.8384]
[1759397721443,0.69,224.84,224.83,4.8384]
[1759397723243,4.44760718,224.84,224.83,4.8384]
[1759397724259,5.10760718,224.84,224.83,4.8384]
[1759397724461,4.44760718,224.84,224.83,4.8384]
[1759397724655,5.1073856,224.86,224.83,4.8384]
[1759397724964,13.35737661,224.87,224.83,5.5584]
[1759397725272,2.33155726,224.91,224.83,5.5584]
[1759397725273,146.2549981,224.9,224.84,32.02]
[1759397725447,13.3549981,224.9,224.85,0.72]
[1759397725770,0.66,224.94,224.85,0.72]
[1759397725771,4.44582759,224.93,224.85,0.72]
[1759397725956,15.56039656,224.93,224.86,20.8]
[1759397726156,0.66,224.92,224.87,31.3]
[1759397726355,0.66,224.91,224.87,31.3]
[1759397726673,0.66,224.91,224.86,20.8]
[1759397726980,0.66,224.9,224.87,31.3]
[1759397727158,5.10658716,224.9,224.87,31.3]
[1759397727674,4.44658716,224.9,224.87,31.3]
[1759397728154,4.44618966,224.92,224.87,31.3]
[1759397728351,4.44618966,224.92,224.88,0.72]
[1759397728551,4.44618966,224.92,224.89,0.72]
[1759397729380,4.44562994,224.94,224.89,0.72]
[1759397729585,5.10562994,224.94,224.89,0.72]
[1759397729877,4.44562994,224.94,224.9,0.72]
[1759397730059,5.10562994,224.94,224.91,31.3]
[1759397730261,0.66,224.93,224.91,31.3]
[1759397730469,0.66,224.92,224.88,52.1]
[1759397730679,0.66,224.91,224.88,52.1]
[1759397730974,0.66,224.93,224.88,52.1]
[1759397731158,0.66,224.92,224.88,52.1]
[1759397732074,5.10617926,224.92,224.88,52.1]
[1759397732383,5.10617926,224.92,224.9,14.3]
[1759397734366,0.66,224.91,224.9,14.3]
[1759397735692,4.44582759,224.93,224.9,14.3]
[1759397735866,4.44582759,224.93,224.9,15.02]
[1759397736362,4.44582759,224.93,224.9,14.3]
[1759397736667,5.1052347,224.96,224.9,14.3]
[1759397736887,146.25143194,224.97,224.91,32.0]
[1759397737194,0.1,224.98,224.92,0.72]
[1759397737764,4.54486027,224.98,224.93,4.44582759]
[1759397737992,4.54486027,224.98,224.94,32.0]
[1759397738477,0.1,224.98,224.94,32.0]
[1759397738676,4.5448402,224.98,224.94,32.0]
[1759397740601,0.1,224.98,224.94,32.0]
[1759397741579,4.54485225,224.98,224.95,0.72]
[1759397741783,4.54485225,224.98,224.94,31.28]
[1759397741976,0.1,224.98,224.95,4.44543231]
[1759397742185,0.1,224.98,224.96,0.72]
[1759397742484,0.1,224.98,224.97,31.28]
[1759397742992,0.1,224.98,224.97,32.0]
[1759397743368,0.1,224.98,224.97,47.32151232]
[1759397743567,0.1,224.98,224.97,53.68326132]
[1759397750701,0.1,224.98,224.97,42.80678611]
[1759397756391,0.1,224.98,224.97,42.78678611]
[1759397759212,0.1,224.98,224.97,42.06678611]
[1759397760318,0.1,224.98,224.97,53.60326132]
[1759397763393,1e-08,224.98,224.97,67.68601603]
[1759397763702,0.1,225.0,224.99,10.87647521]
[1759397763903,0.1,225.0,224.99,48.49822421]
[1759397764108,0.1,225.0,224.99,49.15822421]
[1759397764812,0.1,225.0,224.99,53.60286619]
[1759397765915,0.1,225.0,224.99,21.68286619]
[1759397766120,0.1,225.0,224.99,52.94286619]
[1759397766639,0.79,225.0,224.99,21.68286619]
[1759397766841,0.79,225.0,224.99,52.94286619]
[1759397767142,0.79,225.0,224.99,42.06639098]
[1759397768139,0.1,225.0,224.99,42.06639098]
[1759397771915,0.1,225.0,224.99,52.94286619]
[1759397773538,0.1,225.0,224.99,22.34286619]
[1759397773714,0.1,225.0,224.99,57.16172808]
[1759397776327,1e-08,225.0,224.99,57.16172808]
[1759397776721,1e-08,225.0,224.99,29.61142706]
[1759397777045,1e-08,225.0,224.99,25.90172808]
[1759397777345,1e-08,225.0,224.99,57.16172808]
[1759397779258,1e-08,225.0,224.99,25.24172808]
[1759397779418,1e-08,225.0,224.99,21.68286619]
[1759397779623,1e-08,225.0,224.99,52.92286619]
[1759397780019,0.69000001,225.0,224.98,3.71196385]
[1759397780349,0.69,224.99,224.98,20.8]
[1759397780533,0.69,224.99,224.93,4.44569459]
[1759397780757,0.69,224.98,224.94,31.28]
[1759397780916,0.69,224.97,224.96,20.8]
[1759397781121,0.69,224.97,224.96,52.08]
[1759397783318,5.13503711,224.97,224.9,3.71196385]
[1759397783515,0.69,224.96,224.88,2.31883674]
[1759397783744,0.69,224.95,224.89,31.28]
[1759397784049,0.69,224.95,224.9,31.28]
[1759397784050,0.68,224.94,224.9,31.28]
[1759397784249,1.4890754,224.95,224.85,2.32056324]
[1759397784250,4.44602525,224.92,224.85,2.32056324]
[1759397784427,0.68,224.91,224.86,31.32]
[1759397784746,0.68,224.9,224.83,4.8384]
[1759397784935,0.68,224.89,224.84,31.32]
[1759397785140,0.68,224.88,224.84,31.32]
[1759397785349,0.68,224.87,224.86,20.8]
[1759397785547,0.68,224.87,224.86,52.12]
[1759397786132,0.68,224.87,224.86,31.32]
[1759397786335,0.68,224.87,224.83,4.8384]
[1759397786528,0.68,224.86,224.84,31.32]
[1759397786728,0.68,224.85,224.84,31.32]
[1759397787525,0.68,224.85,224.83,4.8384]
[1759397787740,15.56280101,224.9,224.84,31.32]
[1759397788456,0.68,224.89,224.84,31.32]
[1759397788634,0.68,224.88,224.84,31.32]
[1759397788843,0.68,224.87,224.84,31.32]
[1759397789061,11.11471244,224.93,224.86,7.3]
[1759397789240,11.11471244,224.93,224.86,31.34]
[1759397789635,0.68,224.92,224.86,31.34]
[1759397789847,0.68,224.91,224.86,31.34]
[1759397790045,0.68,224.9,224.86,31.34]
[1759397790260,12.60378784,224.93,224.86,31.34]
[1759397790261,0.68,224.89,224.86,31.34]
[1759397790459,0.68,224.88,224.86,31.34]
[1759397790637,0.68,224.87,224.85,31.32]
[1759397790848,17.04961543,224.93,224.83,4.8384]
[1759397790849,0.68,224.86,224.83,4.8384]
[1759397791036,0.68,224.85,224.83,4.8384]
[1759397791237,0.68,224.84,224.83,4.8384]
[1759397792446,5.12760718,224.84,224.83,4.8384]
[1759397795242,6.61668258,224.84,224.83,4.8384]
[1759397795645,17.49315779,224.84,224.83,1e-08]
[1759397796969,31.67647521,224.8,224.75,0.2]
[1759397797256,16.81474085,224.76,224.75,0.2]
[1759397797776,16.00566545,224.76,224.75,0.2]
[1759397797968,17.49474085,224.76,224.63,36.98279041]
[1759397798175,1.4890754,224.74,224.65,15.42]
[1759397798385,0.68,224.73,224.65,15.42]
[1759397798664,0.68,224.72,224.65,15.42]
[1759397799240,5.1299822,224.72,224.64,0.69]
[1759397800039,5.1299822,224.72,224.64,5.14155611]
[1759397800239,5.1299822,224.72,224.64,0.69]
[1759397800433,5.1299822,224.72,224.63,31.36]
[1759397800667,11.12297561,224.76,224.67,4.45096582]
[1759397800668,5.12970887,224.74,224.67,4.45096582]
[1759397800973,5.12970887,224.74,224.68,4.45077325]
[1759397801144,0.68,224.74,224.68,4.45077325]
[1759397801763,5.12967533,224.74,224.68,4.45077325]
[1759397802335,0.68,224.74,224.69,4.45050041]
[1759397802541,4.44935141,224.76,224.69,4.45050041]
[1759397802874,137.3489233,224.78,224.7,4.450336]
[1759397803078,132.9,224.78,224.72,0.69]
[1759397803574,132.9,224.78,224.73,4.44978418]
[1759397803739,132.9,224.78,224.73,12.43978418]
[1759397803938,132.9,224.78,224.74,0.69]
[1759397804141,132.9,224.78,224.73,11.74978418]
[1759397804360,132.9,224.78,224.73,12.43978418]
[1759397804565,138.02886148,224.78,224.73,7.3]
[1759397804867,0.68,224.77,224.73,7.3]
[1759397805044,0.68,224.76,224.73,7.3]
[1759397805766,137.34886148,224.78,224.73,7.3]
[1759397806108,0.68,224.77,224.73,7.3]
[1759397806267,0.68,224.76,224.73,7.3]
[1759397808969,137.34879924,224.78,224.73,7.3]
[1759397809171,137.34879924,224.78,224.73,7.99]
[1759397809672,138.02879924,224.78,224.73,7.99]
[1759397810170,138.02879924,224.78,224.73,7.3]
[1759397810375,0.68,224.77,224.73,7.3]
[1759397812067,137.34879924,224.78,224.73,12.43973753]
[1759397812277,138.02879924,224.78,224.73,7.99]
[1759397812454,138.02879924,224.78,224.73,12.43973866]
[1759397812855,133.58,224.78,224.73,12.43973866]
[1759397814557,133.58,224.78,224.73,11.74973866]
[1759397814558,132.9,224.78,224.73,11.74973866]
[1759397814762,0.7,224.77,224.73,7.3]
[1759397815273,0.7,224.77,224.73,11.74977837]
[1759397815474,132.9,224.78,224.74,0.69]
[1759397815678,0.7,224.83,224.76,20.8]
[1759397815882,8.05483148,224.85,224.77,32.03]
[1759397816055,8.05483148,224.85,224.78,4.44879437]
[1759397816056,12.50227046,224.85,224.78,4.44879437]
[1759397818858,0.7,224.84,224.78,4.44879437]
[1759397819265,0.7,224.84,224.79,31.34]
[1759397819765,0.7,224.84,224.79,36.47847499]
[1759397820168,4.44769195,224.84,224.79,31.34]
[1759397820367,0.7,224.83,224.77,31.34]
[1759397820572,0.7,224.82,224.76,20.8]
[1759397820872,2.3312559,224.83,224.74,31.34]
[1759397820873,0.7,224.81,224.74,31.34]
[1759397821065,0.7,224.8,224.74,31.34]
[1759397821259,132.9,224.82,224.74,31.34]
[1759397821260,0.7,224.79,224.74,31.34]
[1759397821463,0.7,224.78,224.74,31.34]
[1759397821664,4.44919024,224.76,224.73,7.3]